bitfinex-derivatives/quotes_BNBF0:USTF0_20250810
["timestamp","ask_amount","ask_price","bid_price","bid_amount"]
[1754817353766,1.67794786,801.21,800.1,0.72838358]
[1754817353973,1.67794786,801.21,800.11,0.72838358]
[1754817354171,1.67794786,801.21,800.12,0.72838358]
[1754817354467,1.67794786,801.26,800.13,0.72838358]
[1754817354669,1.67794786,801.26,800.14,0.72838358]
[1754817354968,1.67794786,801.27,800.15,0.72838358]
[1754817355166,1.67794786,801.32,800.16,0.72838358]
[1754817355366,1.67794786,801.32,800.17,0.72838358]
[1754817355570,1.67794786,801.32,800.18,0.72838358]
[1754817355870,1.67794786,801.32,800.19,0.72838358]
[1754817356171,1.67794786,801.31,800.2,0.72838358]
[1754817356371,1.67794786,801.31,800.06,1.812]
[1754817356372,1.67794786,801.35,800.21,0.72838358]
[1754817356569,1.67794786,801.35,800.22,0.72838358]
[1754817356770,1.67794786,801.35,800.23,0.72838358]
[1754817357068,1.67794786,801.35,800.24,0.72838358]
[1754817357268,1.67794786,801.38,800.25,0.72838358]
[1754817357472,1.67794786,801.38,800.26,0.72838358]
[1754817357673,1.67794786,801.38,800.27,0.72838358]
[1754817357972,1.67794786,801.38,800.06,1.812]
[1754817358173,1.67794786,801.38,800.07,0.72655457]
[1754817358369,1.67794786,801.41,800.08,0.72655457]
[1754817358572,1.67794786,801.41,800.09,0.72655457]
[1754817358767,1.67794786,801.41,800.1,0.72655457]
[1754817359069,1.67794786,801.41,800.11,0.72655457]
[1754817359267,1.67794786,801.44,800.12,0.72655457]
[1754817359468,1.67794786,801.42,800.13,0.72655457]
[1754817359673,1.67794786,801.42,800.06,1.812]
[1754817359873,1.67794786,801.42,800.07,0.72605119]
[1754817360073,1.67794786,801.42,800.08,0.72605119]
[1754817360271,1.67794786,801.43,800.09,0.72605119]
[1754817360470,1.67794786,801.43,800.1,0.72605119]
[1754817360673,1.67794786,801.43,800.11,0.72605119]
[1754817360872,1.67794786,801.43,800.12,0.72605119]
[1754817361071,1.67794786,801.35,800.13,0.72605119]
[1754817361377,1.67794786,801.37,800.14,0.72605119]
[1754817361577,1.67794786,801.37,800.15,0.72605119]
[1754817361782,1.67794786,801.37,800.06,1.812]
[1754817361783,1.67794786,801.37,800.16,0.72605119]
[1754817361973,1.67794786,801.37,800.17,0.72605119]
[1754817362274,1.67794786,801.38,800.18,0.72605119]
[1754817362577,1.67794786,801.52,800.19,0.72605119]
[1754817362777,1.67794786,801.53,800.2,0.72605119]
[1754817362978,1.67794786,801.53,800.21,0.72605119]
[1754817363176,1.67794786,801.53,800.22,0.72605119]
[1754817363376,1.67794786,801.56,800.23,0.72605119]
[1754817363576,1.67794786,801.56,800.24,0.72605119]
[1754817363775,1.67794786,801.56,800.25,0.72605119]
[1754817363974,1.67794786,801.56,800.26,0.72605119]
[1754817364176,1.67794786,801.56,800.27,0.72605119]
[1754817364376,1.67794786,801.59,800.28,0.72605119]
[1754817364580,1.67794786,801.57,800.29,0.72605119]
[1754817364780,1.67794786,801.57,800.3,0.72605119]
[1754817364977,1.67794786,801.53,800.31,0.72605119]
[1754817365280,1.67794786,801.54,800.32,0.72605119]
[1754817365477,1.67794786,801.56,800.33,0.72605119]
[1754817365778,1.67794786,801.56,800.06,1.812]
[1754817365980,1.67794786,801.59,800.07,0.72474495]
[1754817366180,1.67794786,801.59,800.08,0.72474495]
[1754817366379,1.67794786,801.65,800.09,0.72474495]
[1754817366575,1.67794786,801.65,800.1,0.72474495]
[1754817366780,1.67794786,801.65,800.11,0.72474495]
[1754817366980,1.67794786,801.65,800.12,0.72474495]
[1754817367179,1.67794786,801.65,800.13,0.72474495]
[1754817367382,0.21699413,802.26,800.14,0.72474495]
[1754817367383,1.67794786,801.68,800.14,0.72474495]
[1754817367582,1.67794786,801.68,800.15,0.72474495]
[1754817367782,1.67794786,801.68,800.16,0.72474495]
[1754817368084,1.67794786,801.64,800.17,0.72474495]
[1754817368278,1.67794786,801.67,800.18,0.72474495]
[1754817368577,1.67794786,801.67,800.19,0.72474495]
[1754817368778,1.67794786,801.67,800.2,0.72474495]
[1754817368986,1.67794786,801.67,800.21,0.72474495]
[1754817369179,1.67794786,801.62,800.22,0.72474495]
[1754817369379,1.67794786,801.64,800.23,0.72474495]
[1754817369582,1.67794786,801.67,800.24,0.72474495]
[1754817369783,1.67794786,801.67,800.25,0.72474495]
[1754817369980,1.67794786,801.67,800.26,0.72474495]
[1754817370180,1.67794786,801.66,800.27,0.72474495]
[1754817370384,1.67794786,801.69,800.28,0.72474495]
[1754817370582,1.67794786,801.69,800.29,0.72474495]
[1754817370779,1.67794786,801.69,800.3,0.72474495]
[1754817370979,1.67794786,801.66,800.31,0.72474495]
[1754817371182,1.67794786,801.66,800.32,0.72474495]
[1754817371393,1.67794786,801.68,800.33,0.72474495]
[1754817371591,1.67794786,801.68,800.34,0.72474495]
[1754817371795,0.21699413,802.26,800.35,0.72474495]
[1754817371796,1.67794786,801.72,800.35,0.72474495]
[1754817372095,1.67794786,801.72,800.36,0.72474495]
[1754817372295,1.67794786,801.72,800.37,0.72474495]
[1754817372491,1.67794786,801.76,800.38,0.72474495]
[1754817372695,1.67794786,801.76,800.39,0.72474495]
[1754817372995,1.67794786,801.76,800.4,0.72474495]
[1754817373196,1.67794786,801.76,800.41,0.72474495]
[1754817373492,1.67794786,801.78,800.42,0.72474495]
[1754817373796,1.67794786,801.79,800.43,0.72474495]
[1754817374096,1.67794786,801.79,800.44,0.72306458]
[1754817374297,1.67794786,801.98,800.45,0.72293802]
[1754817374493,1.67794786,801.94,800.06,1.812]
[1754817374698,0.6576735,801.93,800.07,0.72308802]
[1754817374893,0.6576735,801.92,800.08,0.72308802]
[1754817375094,0.6576735,801.91,800.09,0.72308802]
[1754817375299,0.6576735,801.9,800.1,0.72308802]
[1754817375595,0.6576735,801.89,800.11,0.72308802]
[1754817375794,0.6576735,801.88,800.12,0.72308802]
[1754817375994,0.6576735,801.87,800.13,0.72308802]
[1754817376295,0.6576735,801.86,800.14,0.72308802]
[1754817376598,0.6576735,801.85,800.15,0.72308802]
[1754817376798,0.6576735,801.84,800.16,0.72308802]
[1754817376998,0.6576735,801.83,800.17,0.72308802]
[1754817377198,0.6576735,801.82,800.18,0.72308802]
[1754817377395,0.6576735,801.81,800.19,0.72308802]
[1754817377595,0.6576735,801.8,800.2,0.72308802]
[1754817377801,0.6576735,801.79,800.21,0.72308802]
[1754817377997,0.6576735,801.78,800.22,0.72308802]
[1754817378200,0.6576735,801.77,800.23,0.72308802]
[1754817378400,0.6576735,801.76,800.24,0.72308802]
[1754817378598,1.67794786,802.07,800.25,0.72308802]
[1754817378797,0.65765995,802.06,800.26,0.72308802]
[1754817379000,0.65765995,802.05,800.27,0.72308802]
[1754817379199,0.65765995,802.05,800.06,1.812]
[1754817379200,0.65765995,802.04,800.28,0.72308802]
[1754817379399,0.65765995,802.03,800.29,0.72308802]
[1754817379601,0.65765995,802.02,800.3,0.72308802]
[1754817379798,0.65765995,802.01,800.31,0.72308802]
[1754817380098,0.65765995,802.0,800.32,0.72308802]
[1754817380297,0.65765995,801.99,800.33,0.72308802]
[1754817380503,0.65765995,801.98,800.34,0.72308802]
[1754817380702,0.65765995,801.97,800.35,0.72308802]
[1754817380901,0.65765995,801.96,800.36,0.72308802]
[1754817381198,0.65765995,801.95,800.37,0.72308802]
[1754817381402,0.65765995,801.94,800.38,0.72308802]
[1754817381702,0.65765995,801.94,800.06,1.812]
[1754817381703,0.65765995,801.93,800.39,0.72308802]
[1754817381904,0.65765995,801.92,800.4,0.72308802]
[1754817382198,0.65765995,801.91,800.41,0.72308802]
[1754817382404,0.65765995,801.9,800.42,0.72308802]
[1754817382604,0.65765995,801.89,800.43,0.72308802]
[1754817382900,0.65765995,801.88,800.44,0.72308802]
[1754817383102,0.65765995,801.88,800.06,1.812]
[1754817383103,0.65765995,801.87,800.45,0.72308802]
[1754817383299,1.67794786,802.06,800.06,1.812]
[1754817383300,0.65765995,801.86,800.46,0.72308802]
[1754817383504,1.67794786,802.06,800.47,0.72308802]
[1754817383800,1.67794786,802.06,800.06,1.812]
[1754817383801,0.65782735,802.05,800.48,0.72308802]
[1754817383999,0.65782735,802.04,800.49,0.72308802]
[1754817384203,0.21699413,802.26,800.5,0.72308802]
[1754817384204,1.67794786,801.94,800.5,0.72308802]
[1754817384403,2.33577521,801.93,800.51,0.72308802]
[1754817384604,0.65782735,801.92,800.52,0.72308802]
[1754817384905,1.67794786,801.71,800.05,0.21708415]
[1754817385099,1.67794786,801.69,800.06,0.72341288]
[1754817385300,1.67794786,801.67,800.07,0.72341288]
[1754817385501,1.67794786,801.67,800.08,0.72341288]
[1754817385799,1.67794786,801.67,800.09,0.72341288]
[1754817386004,1.67794786,801.67,800.1,0.72341288]
[1754817386199,1.67794786,801.65,800.11,0.72341288]
[1754817386401,1.67794786,801.65,800.05,0.21708415]
[1754817386402,1.67794786,801.65,800.12,0.72341288]
[1754817386603,1.67794786,801.65,800.13,0.72341288]
[1754817386804,1.67794786,801.65,800.14,0.72341288]
[1754817387004,1.67794786,801.65,800.15,0.72341288]
[1754817387204,1.67794786,801.99,800.16,0.72341288]
[1754817387401,0.65819588,801.98,800.16,0.72341288]
[1754817387601,0.65819588,801.97,800.16,0.72341288]
[1754817387804,0.65819588,801.96,800.16,0.72341288]
[1754817388104,0.65819588,801.95,800.16,0.72341288]
[1754817388298,0.65819588,801.94,800.16,0.72341288]
[1754817388499,1.67794786,801.97,800.16,0.72341288]
[1754817388701,0.65832423,801.96,800.16,0.72341288]
[1754817388900,0.65832423,801.95,800.16,0.72341288]
[1754817389104,1.67794786,801.97,800.16,0.72341288]
[1754817389303,1.67794786,801.95,800.16,0.72341288]
[1754817389907,1.67794786,801.96,800.16,0.72341288]
[1754817390100,2.33641334,801.95,800.16,0.72341288]
[1754817390301,1.67794786,801.93,800.16,0.72341288]
[1754817391307,1.67794786,801.9,800.16,0.72341288]
[1754817392307,1.67794786,801.88,800.16,0.72341288]
[1754817393310,1.67794786,801.86,800.16,0.72341288]
[1754817393509,0.65909755,801.85,800.16,0.72341288]
[1754817393710,0.65909755,801.84,800.16,0.72341288]
[1754817394006,0.65909755,801.83,800.16,0.72341288]
[1754817394208,0.65909755,801.82,800.16,0.72341288]
[1754817394410,0.65909755,801.81,800.16,0.72341288]
[1754817394607,1.67794786,801.86,800.16,0.72341288]
[1754817394805,0.21699413,802.26,800.16,0.72341288]
[1754817394806,0.65920278,801.85,800.16,0.72341288]
[1754817395103,0.65920278,801.84,800.16,0.72341288]
[1754817395307,0.65920278,801.83,800.16,0.72341288]
[1754817395509,0.65920278,801.82,800.16,0.72341288]
[1754817395808,0.65920278,801.81,800.16,0.72341288]
[1754817396006,1.67794786,801.85,800.16,0.72341288]
[1754817396206,1.67794786,801.86,800.16,0.72341288]
[1754817396405,1.67794786,801.89,800.16,0.72341288]
[1754817396609,0.6598045,801.88,800.16,0.72341288]
[1754817396809,0.6598045,801.87,800.16,0.72341288]
[1754817397007,1.67794786,801.71,800.16,0.72341288]
[1754817397506,1.67794786,801.69,800.16,0.72341288]
[1754817398310,1.67794786,801.66,800.16,0.72341288]
[1754817399308,1.67794786,801.64,800.16,0.72341288]
[1754817400209,1.67794786,801.61,800.56,0.5]
[1754817401418,1.67794786,801.58,800.56,0.5]
[1754817401617,1.67794786,801.58,800.62,0.281]
[1754817401817,1.67794786,801.58,800.56,0.5]
[1754817402219,1.67794786,801.5,800.56,0.5]
[1754817402520,1.67794786,801.47,800.56,0.5]
[1754817402718,1.67794786,801.47,800.62,0.281]
[1754817402923,1.67794786,801.41,800.56,0.5]
[1754817403317,1.67794786,801.38,800.56,0.5]
[1754817403818,1.67794786,801.38,800.59,0.5]
[1754817404012,1.67794786,801.37,800.59,0.5]
[1754817404224,1.67794786,801.36,800.59,0.5]
[1754817404521,1.67794786,801.26,800.59,0.5]
[1754817405022,1.67794786,801.27,800.59,0.5]
[1754817405317,1.67794786,801.24,800.59,0.5]
[1754817405523,1.67794786,801.24,800.05,0.21708415]
[1754817405723,1.67794786,801.24,800.06,0.72749812]
[1754817405921,1.67794786,801.24,800.07,0.72749812]
[1754817406119,1.67794786,801.17,800.08,0.72749812]
[1754817406319,1.67794786,801.14,800.09,0.72749812]
[1754817406624,1.67794786,801.14,800.1,0.72749812]
[1754817406921,1.67794786,801.14,800.11,0.72749812]
[1754817407120,1.67794786,801.14,800.12,0.72749812]
[1754817407320,1.67794786,801.12,800.13,0.72749812]
[1754817407625,1.67794786,801.12,800.16,0.5]
[1754817407919,1.67794786,801.12,800.17,2.50049812]
[1754817408123,1.67794786,801.12,800.18,0.72749812]
[1754817408321,1.67794786,801.11,800.18,0.72749812]
[1754817408721,1.67794786,801.11,800.22,0.322]
[1754817408924,1.67794786,801.11,800.23,0.72749812]
[1754817409121,1.67794786,801.11,800.24,0.72749812]
[1754817409324,1.67794786,801.1,800.25,0.72749812]
[1754817409524,1.67794786,801.1,800.26,0.72749812]
[1754817409719,1.67794786,801.1,800.27,0.72749812]
[1754817409921,1.67794786,801.05,800.28,0.72749812]
[1754817410220,1.67794786,801.04,800.29,0.72749812]
[1754817410422,1.67794786,801.04,800.3,0.72749812]
[1754817410723,1.67794786,801.04,800.31,0.72749812]
[1754817410921,1.67794786,801.04,800.32,0.72749812]
[1754817411121,1.67794786,801.04,800.33,0.72749812]
[1754817411322,1.67794786,801.02,800.34,0.72749812]
[1754817411524,1.67794786,801.02,800.35,0.72749812]
[1754817411725,1.67794786,801.02,800.36,0.72749812]
[1754817411922,1.67794786,801.02,800.37,0.72749812]
[1754817412225,1.67794786,801.01,800.38,0.72749812]
[1754817412421,1.67794786,801.01,800.39,0.72749812]
[1754817412625,1.67794786,801.01,800.4,0.72749812]
[1754817412824,1.67794786,801.08,800.41,0.70753533]
[1754817413026,1.67794786,801.08,800.17,1.773]
[1754817413221,1.67794786,801.08,800.18,0.70753533]
[1754817413421,2.79290881,801.68,800.19,0.70753533]
[1754817413422,1.67794786,801.07,800.19,0.70753533]
[1754817413626,1.67794786,801.06,800.2,0.70753533]
[1754817413823,1.67794786,801.06,800.21,0.70753533]
[1754817414127,1.67794786,801.06,800.22,0.70753533]
[1754817414326,1.67794786,801.06,800.32,0.5]
[1754817414626,1.67794786,801.08,800.33,0.70753533]
[1754817414826,1.67794786,801.06,800.33,0.70753533]
[1754817415025,1.67794786,801.38,800.33,0.70753533]
[1754817415626,1.67794786,801.37,800.33,0.70753533]
[1754817416029,1.67794786,801.35,800.33,0.70753533]
[1754817416224,1.67794786,801.35,800.34,0.70753533]
[1754817416426,1.67794786,801.36,800.35,0.70753533]
[1754817416625,1.67794786,801.36,800.36,0.70753533]
[1754817416830,1.67794786,801.36,800.37,0.70753533]
[1754817417125,1.67794786,801.36,800.38,0.70753533]
[1754817417330,1.67794786,801.35,800.39,0.70753533]
[1754817417630,1.67794786,801.35,800.4,0.70753533]
[1754817417825,1.67794786,801.37,800.41,0.70753533]
[1754817418030,1.67794786,801.37,800.42,0.70753533]
[1754817418325,1.67794786,801.37,800.43,0.70753533]
[1754817418530,1.67794786,801.37,800.44,0.70753533]
[1754817418724,1.67794786,801.39,800.45,0.70753533]
[1754817418927,1.67794786,801.4,800.46,0.70753533]
[1754817419125,1.67794786,801.4,800.47,0.70753533]
[1754817419426,1.67794786,801.4,800.44,0.5]
[1754817419427,1.67794786,801.37,800.48,0.70753533]
[1754817419627,1.67794786,801.37,800.49,0.70753533]
[1754817419826,1.67794786,801.37,800.5,0.70753533]
[1754817420029,1.67794786,801.37,800.51,0.70753533]
[1754817420227,1.67794786,801.35,800.52,0.70753533]
[1754817420526,1.67794786,801.32,800.53,0.70753533]
[1754817420727,1.67794786,801.32,800.54,0.70753533]
[1754817420934,1.67794786,801.31,800.55,0.70753533]
[1754817421132,1.67794786,801.2,800.26,0.346]
[1754817421427,1.67794786,801.14,800.29,0.302]
[1754817421631,1.67794786,801.14,800.3,0.708429]
[1754817421830,1.67794786,801.16,800.33,0.283]
[1754817422028,1.67794786,801.16,800.34,0.708429]
[1754817422228,1.67794786,801.16,800.35,0.708429]
[1754817422427,1.67794786,801.17,800.36,0.708429]
[1754817422626,1.67794786,801.14,800.37,0.708429]
[1754817422830,1.67794786,801.14,800.38,0.708429]
[1754817423031,1.67794786,801.14,800.39,0.708429]
[1754817423229,1.67794786,801.14,800.4,0.708429]
[1754817423433,1.67794786,801.15,800.41,0.708429]
[1754817423634,1.67794786,801.15,800.42,0.708429]
[1754817423833,1.67794786,801.15,800.43,0.708429]
[1754817424033,1.67794786,801.15,800.44,0.708429]
[1754817424234,1.67794786,801.16,800.26,0.21703812]
[1754817424436,1.67794786,801.23,800.27,0.70763594]
[1754817424635,1.67794786,801.23,800.28,0.70763594]
[1754817424832,0.21703812,801.88,800.26,0.21703812]
[1754817424833,1.67794786,800.96,800.26,0.21703812]
[1754817425335,1.67794786,800.97,800.28,0.302]
[1754817425532,1.67794786,800.97,800.26,0.21703812]
[1754817425832,1.67794786,800.97,800.28,0.302]
[1754817426134,1.67794786,800.97,800.26,0.21703812]
[1754817426335,1.67794786,800.98,800.26,0.21703812]
[1754817426536,1.67794786,800.98,800.28,0.302]
[1754817426736,1.67794786,800.98,800.26,0.21703812]
[1754817427232,1.67794786,800.98,800.32,0.281]
[1754817427437,1.67794786,800.98,800.26,0.21703812]
[1754817427438,1.67794786,800.99,800.26,0.21703812]
[1754817428238,1.67794786,800.98,800.26,0.21703812]
[1754817430434,1.67794786,800.96,800.26,0.21703812]
[1754817430632,1.67794786,800.98,800.26,0.21703812]
[1754817430839,1.67794786,800.92,800.26,0.21703812]
[1754817431139,1.67794786,800.93,800.26,0.21703812]
[1754817432235,1.67794786,800.94,800.26,0.21703812]
[1754817433342,1.67794786,800.95,800.26,0.21703812]
[1754817434041,1.67794786,800.95,800.27,1.155]
[1754817434338,1.67794786,800.89,800.27,1.155]
[1754817434639,1.67794786,800.9,800.27,1.155]
[1754817435039,1.67794786,800.93,800.27,1.155]
[1754817435241,1.67794786,800.94,800.27,1.155]
[1754817435444,1.67794786,800.96,800.27,1.155]
[1754817435644,1.67794786,800.95,800.27,1.155]
[1754817435945,1.67794786,800.94,800.27,1.155]
[1754817436242,1.67794786,801.05,800.27,1.155]
[1754817437342,1.67794786,801.08,800.27,1.155]
[1754817438349,1.67794786,801.1,800.27,1.155]
[1754817439248,1.67794786,801.12,800.27,1.155]
[1754817440346,1.67794786,801.13,800.27,1.155]
[1754817440546,1.67794786,801.14,800.27,1.155]
[1754817441249,1.67794786,801.16,800.27,1.155]
[1754817442145,1.67794786,801.14,800.27,1.155]
[1754817442446,1.67794786,801.16,800.27,1.155]
[1754817443448,1.67794786,801.17,800.27,1.155]
[1754817444048,1.67794786,801.23,800.29,0.289]
[1754817444352,1.67794786,801.28,800.27,1.155]
[1754817444851,1.67794786,801.25,800.27,1.155]
[1754817445249,1.67794786,801.15,800.27,1.155]
[1754817445552,1.67794786,801.2,800.27,1.155]
[1754817445853,1.67794786,801.18,800.27,1.155]
[1754817447653,1.67794786,801.21,800.27,1.155]
[1754817449057,1.67794786,801.2,800.27,1.155]
[1754817449256,1.67794786,801.21,800.27,1.155]
[1754817449459,1.67794786,801.2,800.27,1.155]
[1754817450054,1.67794786,801.21,800.27,1.155]
[1754817450259,1.67794786,801.19,800.27,1.155]
[1754817450458,1.67794786,801.2,800.27,1.155]
[1754817450655,1.67794786,801.19,800.27,1.155]
[1754817452153,1.67794786,801.19,800.29,0.279]
[1754817452358,1.67794786,801.19,800.27,1.155]
[1754817453859,1.67794786,801.14,800.27,1.155]
[1754817454063,1.67794786,801.12,800.27,1.155]
[1754817454960,1.67794786,801.05,800.27,1.155]
[1754817455264,1.67794786,800.98,800.27,1.155]
[1754817455763,1.67794786,800.99,800.27,1.155]
[1754817456163,1.67794786,801.15,800.27,1.155]
[1754817456361,1.67794786,801.18,800.27,1.155]
[1754817457060,1.67794786,801.19,800.4,0.283]
[1754817457264,1.67794786,801.24,800.46,0.5]
[1754817457464,1.67794786,801.32,800.46,0.5]
[1754817457861,1.67794786,801.31,800.46,0.5]
[1754817458066,1.67794786,801.32,800.46,0.5]
[1754817458266,1.67794786,801.31,800.46,0.5]
[1754817458767,1.67794786,801.3,800.46,0.5]
[1754817459365,1.67794786,801.25,800.46,0.5]
[1754817459563,1.67794786,801.25,800.36,0.5]
[1754817460365,1.67794786,801.24,800.36,0.5]
[1754817460867,1.67794786,801.24,800.44,0.287]
[1754817461067,1.67794786,801.24,800.42,0.5]
[1754817461368,1.67794786,801.22,800.42,0.5]
[1754817462469,1.67794786,801.18,800.42,0.5]
[1754817463666,1.67794786,801.17,800.42,0.5]
[1754817464867,1.67794786,801.35,800.42,0.5]
[1754817465268,1.67794786,801.34,800.42,0.5]
[1754817466474,1.67794786,801.33,800.42,0.5]
[1754817467072,1.67794786,801.3,800.42,0.5]
[1754817467272,2.79290881,802.01,800.42,0.5]
[1754817467273,1.67794786,801.26,800.42,0.5]
[1754817467569,1.67794786,801.26,800.37,0.35]
[1754817468270,1.67794786,801.26,800.36,0.5]
[1754817468469,1.67794786,801.25,800.36,0.5]
[1754817468673,1.67794786,801.25,800.46,0.272]
[1754817468874,1.67794786,801.25,800.43,0.5]
[1754817469373,1.67794786,801.2,800.43,0.5]
[1754817469773,1.67794786,801.2,800.37,0.35]
[1754817470074,1.67794786,801.2,800.27,1.155]
[1754817470075,1.67794786,801.19,800.38,0.5]
[1754817470569,1.67794786,801.18,800.38,0.5]
[1754817471473,1.67794786,801.17,800.38,0.5]
[1754817472570,1.67794786,801.15,800.38,0.5]
[1754817472774,1.67794786,801.23,800.38,0.5]
[1754817473475,1.67794786,801.22,800.38,0.5]
[1754817473669,1.67794786,801.21,800.38,0.5]
[1754817474371,1.67794786,801.2,800.38,0.5]
[1754817474871,1.67794786,801.07,800.39,1.512]
[1754817475277,1.67794786,801.12,800.42,0.5]
[1754817475470,1.67794786,801.14,800.46,0.285]
[1754817475776,1.67794786,801.18,800.62,0.285]
[1754817475975,1.67794786,801.18,800.57,0.5]
[1754817477371,1.67794786,801.17,800.57,0.5]
[1754817478572,1.67794786,801.19,800.57,0.5]
[1754817478772,1.67794786,801.2,800.57,0.5]
[1754817479275,1.67794786,801.19,800.57,0.5]
[1754817479473,1.67794786,801.24,800.57,0.5]
[1754817479675,1.67794786,801.24,800.61,0.5]
[1754817480076,1.67794786,801.24,800.62,0.283]
[1754817480276,1.67794786,801.25,800.62,0.283]
[1754817480579,1.67794786,801.29,800.62,0.283]
[1754817481076,1.67794786,801.3,800.62,0.283]
[1754817481576,1.67794786,801.31,800.62,0.283]
[1754817481978,1.67794786,801.34,800.62,0.283]
[1754817482177,1.67794786,801.37,800.69,0.5]
[1754817482379,2.79290881,802.02,800.69,0.5]
[1754817482380,1.67794786,801.44,800.69,0.5]
[1754817482575,1.67794786,801.44,800.75,0.5]
[1754817483176,1.67794786,801.46,800.75,0.5]
[1754817483675,1.67794786,801.46,800.62,0.404]
[1754817483878,1.67794786,801.46,800.39,1.512]
[1754817483879,1.67794786,801.46,800.8,0.281]
[1754817484081,1.67794786,801.48,800.66,0.5]
[1754817484577,1.67794786,801.48,800.39,1.512]
[1754817484578,1.67794786,801.48,800.69,0.5]
[1754817484880,2.79290881,802.22,800.69,0.5]
[1754817484881,1.67794786,801.46,800.69,0.5]
[1754817485084,1.67794786,801.44,800.69,0.5]
[1754817485284,1.67794786,801.46,800.69,0.5]
[1754817486186,1.67794786,801.47,800.69,0.5]
[1754817486486,1.67794786,801.48,800.69,0.5]
[1754817486985,1.67794786,801.47,800.69,0.5]
[1754817487187,1.67794786,801.48,800.69,0.5]
[1754817487383,1.67794786,801.49,800.69,0.5]
[1754817488187,1.67794786,801.5,800.69,0.5]
[1754817488784,1.67794786,801.49,800.69,0.5]
[1754817489188,2.79290881,802.21,800.69,0.5]
[1754817489189,1.67794786,801.5,800.69,0.5]
[1754817489383,1.67794786,801.51,800.69,0.5]
[1754817490183,1.67794786,801.53,800.78,0.5]
[1754817490383,1.67794786,801.6,800.78,0.5]
[1754817490588,1.67794786,801.87,801.02,0.303]
[1754817490788,1.67794786,801.86,801.02,0.303]
[1754817491284,1.67794786,801.89,801.02,0.303]
[1754817492087,1.67794786,801.91,801.03,1.112]
[1754817492291,1.67794786,801.93,801.03,1.112]
[1754817493089,1.67794786,801.96,801.03,1.112]
[1754817494292,1.67794786,801.98,801.03,1.112]
[1754817494892,1.67794786,801.96,801.03,1.112]
[1754817495287,1.67794786,801.98,801.08,0.272]
[1754817495591,1.67794786,801.98,801.03,1.112]
[1754817496093,1.67794786,802.0,801.03,1.112]
[1754817496288,1.67794786,801.99,801.03,1.112]
[1754817496490,1.67794786,801.96,801.03,1.112]
[1754817496991,1.67794786,801.94,801.03,1.112]
[1754817497191,1.67794786,801.96,801.03,1.112]
[1754817498191,1.67794786,801.98,801.03,1.112]
[1754817498393,1.67794786,801.97,801.03,1.112]
[1754817499200,1.67794786,801.99,801.03,1.112]
[1754817499499,1.67794786,801.95,801.03,1.112]
[1754817499701,1.67794786,801.96,801.03,1.112]
[1754817500195,1.67794786,801.97,801.03,1.112]
[1754817500396,1.67794786,801.89,801.03,1.112]
[1754817501197,1.67794786,801.9,801.03,1.112]
[1754817502204,1.67794786,801.91,801.03,1.112]
[1754817502400,1.67794786,801.9,801.03,1.112]
[1754817503001,1.67794786,801.89,801.03,1.112]
[1754817503201,1.67794786,801.9,801.03,1.112]
[1754817503501,1.67794786,801.89,801.03,1.112]
[1754817503807,1.67794786,801.88,801.03,1.112]
[1754817504106,1.67794786,801.92,801.03,1.112]
[1754817504307,1.67794786,801.79,801.03,1.112]
[1754817504806,2.79290881,802.44,801.03,1.112]
[1754817504807,1.67794786,801.75,801.03,1.112]
[1754817505007,1.67794786,801.87,801.03,1.112]
[1754817505304,1.67794786,801.86,801.03,1.112]
[1754817506505,1.67794786,801.87,801.03,1.112]
[1754817507306,1.67794786,801.86,801.03,1.112]
[1754817508408,1.67794786,801.85,801.03,1.112]
[1754817509114,1.67794786,801.9,801.03,1.112]
[1754817509308,1.67794786,801.92,801.03,1.112]
[1754817509513,1.67794786,801.93,801.03,1.112]
[1754817509708,1.67794786,801.98,801.06,0.283]
[1754817510014,1.67794786,801.98,801.03,1.112]
[1754817510414,1.67794786,802.0,801.03,1.112]
[1754817510615,1.67794786,801.99,801.06,0.5]
[1754817511214,1.67794786,802.05,801.06,0.5]
[1754817511414,1.67794786,802.04,801.06,0.5]
[1754817511615,1.67794786,802.05,801.06,0.5]
[1754817512111,1.67794786,802.06,801.06,0.5]
[1754817512314,1.67794786,802.14,801.18,0.283]
[1754817512511,1.67794786,802.21,801.21,0.5]
[1754817512716,1.67794786,802.18,801.21,0.5]
[1754817513111,1.67794786,802.19,801.21,0.5]
[1754817513415,1.67794786,802.18,801.21,0.5]
[1754817514115,1.67794786,802.19,801.21,0.5]
[1754817514414,1.67794786,802.18,801.21,0.5]